bitfinex/quotes_ETHUSD_20250319
["timestamp","ask_amount","ask_price","bid_price","bid_amount"]
[1742414802015,0.06883722,2044.1,2043.8,11.244981]
[1742414802222,4.89236,2044.1,2043.6,5.179]
[1742414802436,0.06878508,2044.0,2043.6,5.179]
[1742414803085,0.06878508,2044.0,2043.7,4.89295]
[1742414803287,0.8267,2044.3,2043.9,4.8926]
[1742414803785,0.06888936,2044.2,2043.9,4.8926]
[1742414804024,0.06888936,2044.2,2043.9,5.948223]
[1742414804195,0.06888936,2044.2,2043.9,5.948313]
[1742414804395,0.06888936,2044.2,2044.0,4.89226]
[1742414805125,0.06888936,2044.2,2043.9,4.89258]
[1742414805296,0.06888936,2044.2,2043.8,4.89283]
[1742414805689,0.06888936,2044.2,2043.8,9.7855]
[1742414805900,0.06888936,2044.2,2043.9,4.89257]
[1742414806102,0.06888936,2044.2,2043.8,11.39641934]
[1742414806293,0.06888936,2044.2,2043.8,1.61101934]
[1742414806497,0.06888936,2044.2,2043.9,4.8924]
[1742414806714,0.06888936,2044.2,2043.9,9.78489]
[1742414806917,0.06888936,2044.2,2044.0,4.89233]
[1742414807314,0.06888936,2044.2,2043.9,4.89253]
[1742414807520,0.06888936,2044.2,2044.0,4.89235]
[1742414807715,0.06888936,2044.2,2043.9,4.89253]
[1742414807716,0.06888936,2044.2,2043.9,4.89247]
[1742414808693,4.96078936,2044.2,2043.7,4.893]
[1742414809015,0.06888936,2044.2,2043.9,4.89255]
[1742414809518,0.06888936,2044.2,2043.8,10.07277]
[1742414809886,0.06888936,2044.2,2043.8,5.18]
[1742414810092,0.06888936,2044.2,2043.9,4.89248]
[1742414810292,0.06888936,2044.2,2043.8,6.187292]
[1742414810293,0.06888936,2044.2,2043.8,11.080102]
[1742414810493,0.06888936,2044.2,2043.9,4.89246]
[1742414810742,0.06888936,2044.2,2043.9,4.89244]
[1742414811020,5.6935,2044.0,2043.5,11.239981]
[1742414811187,6.27461065,2044.0,2043.5,16.133481]
[1742414811391,0.0686526,2043.9,2043.5,10.953481]
[1742414811624,0.0686526,2043.9,2043.5,6.059981]
[1742414811923,4.89301,2043.8,2043.5,6.059981]
[1742414812227,1.38211065,2044.0,2043.6,4.89314]
[1742414812228,0.06852343,2043.7,2043.6,4.89314]
[1742414812518,0.801,2044.0,2043.6,4.89314]
[1742414812727,0.06872984,2043.9,2043.6,4.89314]
[1742414813100,0.06872984,2043.9,2043.6,4.89331]
[1742414813422,0.06872984,2043.9,2043.6,4.89318]
[1742414813624,0.06872984,2043.9,2043.5,6.059981]
[1742414813823,5.53758082,2043.9,2043.5,6.059981]
[1742414814327,4.89285,2043.8,2043.4,5.18]
[1742414814630,0.06847095,2043.7,2043.4,5.18]
[1742414814803,4.96171095,2043.7,2043.2,16.134241]
[1742414815121,0.751,2043.6,2043.2,10.07426]
[1742414815296,0.06837729,2043.5,2043.2,14.96837]
[1742414815497,0.06837729,2043.5,2043.3,4.89394]
[1742414816025,0.06837729,2043.5,2043.2,7.09491993]
[1742414816394,0.06837729,2043.5,2043.2,7.09499993]
[1742414816726,0.06837729,2043.5,2043.2,11.98913993]
[1742414816924,0.06837729,2043.5,2043.4,4.8938]
[1742414817224,0.06837729,2043.5,2043.4,5.60326099]
[1742414817530,0.8225,2043.9,2043.5,4.89341]
[1742414817701,0.8225,2043.9,2043.5,9.78679]
[1742414817903,0.06839208,2043.8,2043.7,4.89308]
[1742414818295,5.71423,2044.3,2043.8,9.78541]
[1742414818490,0.06311267,2044.2,2043.8,4.8927]
[1742414818696,0.06311267,2044.2,2043.7,4.89306]
[1742414818697,4.95510267,2044.2,2043.7,4.89306]
[1742414819194,0.06311267,2044.2,2043.8,4.89278]
[1742414819609,0.06311267,2044.2,2043.8,4.89274]
[1742414819929,4.95512267,2044.2,2043.7,4.89305]
[1742414820095,4.95512267,2044.2,2043.7,6.9957851]
[1742414820295,0.06311267,2044.2,2043.7,2.1027351]
[1742414820706,4.95505267,2044.2,2043.8,4.89267]
[1742414821641,0.06311267,2044.2,2043.8,4.89267]
[1742414822405,0.06311267,2044.2,2044.0,4.89235]
[1742414822628,0.06311267,2044.2,2043.9,4.89236]
[1742414822815,0.06311267,2044.2,2044.1,4.89212]
[1742414823214,0.06311267,2044.2,2044.1,4.94103573]
[1742414823615,0.7874,2044.8,2044.5,4.89114]
[1742414823821,5.67799,2044.8,2044.3,4.89155]
[1742414824328,5.67799,2044.8,2044.2,15.843721]
[1742414824329,4.89073,2044.7,2044.2,15.843721]
[1742414824529,4.89119,2044.5,2044.2,6.059981]
[1742414824946,5.67882,2044.4,2044.2,6.059981]
[1742414825406,10.57041,2044.4,2044.2,6.059981]
[1742414825739,4.89164,2044.3,2044.2,6.059981]
[1742414826032,5.67882,2044.4,2043.9,6.059981]
[1742414826033,5.67888,2044.4,2043.9,6.059981]
[1742414826238,5.67888,2044.4,2043.9,16.132481]
[1742414826534,0.7874,2044.4,2044.0,4.89236]
[1742414827234,5.67885,2044.4,2044.0,4.89236]
[1742414827436,10.57044,2044.4,2043.9,16.132481]
[1742414827643,0.7874,2044.4,2043.9,16.132481]
[1742414827943,5.67899,2044.4,2043.9,21.024951]
[1742414828117,6.736007,2044.4,2043.9,21.024951]
[1742414829641,11.627627,2044.4,2043.9,16.132451]
[1742414829830,6.736007,2044.4,2043.9,16.132451]
[1742414830514,1.844417,2044.4,2043.9,11.239981]
[1742414830844,1.844417,2044.4,2044.0,4.89215]
[1742414831207,1.844417,2044.4,2044.0,9.78434]
[1742414831412,0.05737861,2044.3,2044.0,4.89215]
[1742414831613,0.05737861,2044.3,2043.9,11.239981]
[1742414831614,6.735847,2044.4,2043.9,16.132511]
[1742414831808,0.05736795,2044.3,2043.9,16.132511]
[1742414832127,6.735847,2044.4,2043.9,16.132511]
[1742414832327,10.18341054,2044.1,2043.9,6.059981]
[1742414832527,0.7997,2044.1,2043.9,6.059981]
[1742414832733,0.05721424,2044.0,2043.9,6.059981]
[1742414834669,0.05721424,2044.0,2043.9,11.77990441]
[1742414834943,0.05721424,2044.0,2043.9,14.730981]
[1742414835114,4.89126,2044.5,2044.1,4.89199]
[1742414835313,4.89126,2044.5,2044.2,5.179]
[1742414835618,0.05711354,2044.4,2044.2,5.179]
[1742414837247,0.05711354,2044.4,2044.3,4.94055695]
[1742414837457,0.05711354,2044.4,2044.3,11.7847315]
[1742414837618,0.7547,2045.0,2044.7,4.89066]
[1742414837913,0.05733965,2044.9,2044.7,10.06966]
[1742414838720,10.56238,2045.2,2044.7,10.06956]
[1742414838917,0.05756348,2045.1,2044.7,11.989481]
[1742414839122,5.6723,2045.4,2044.9,4.89012]
[1742414839325,0.05717676,2045.3,2044.9,4.89012]
[1742414839539,5.6723,2045.4,2044.9,4.89012]
[1742414839824,0.05765287,2045.3,2045.0,4.88993]
[1742414840024,0.05765287,2045.3,2045.1,5.178]
[1742414840220,0.7831,2045.4,2045.1,5.178]
[1742414840420,0.05550527,2045.2,2045.1,5.178]
[1742414840627,0.7831,2045.4,2045.1,5.178]
[1742414840821,0.05549174,2045.2,2045.1,5.178]
[1742414841142,0.05538351,2045.2,2045.1,5.178]
[1742414841342,0.7831,2045.4,2045.1,10.06773]
[1742414841556,0.05557088,2045.3,2045.2,6.849581]
[1742414841855,0.05557088,2045.3,2045.2,11.738891]
[1742414842155,4.88864,2045.6,2045.2,6.059981]
[1742414842318,4.88903,2045.4,2045.2,11.237981]
[1742414842523,0.0520697,2045.3,2045.2,11.237981]
[1742414842744,0.0520697,2045.3,2044.6,0.7896]
[1742414842745,4.88962,2045.2,2044.7,10.950541]
[1742414842948,10.19725054,2045.1,2044.8,5.177]
[1742414843151,0.86788973,2045.1,2044.8,10.06733]
[1742414843357,0.8159,2045.1,2044.8,5.177]
[1742414843728,4.94202764,2045.0,2044.8,5.177]
[1742414843929,4.49151054,2044.9,2044.4,6.059981]
[1742414844145,9.38280054,2044.5,2044.3,11.236981]
[1742414844470,0.05116379,2044.4,2044.0,6.059981]
[1742414844674,4.94266379,2044.4,2044.1,5.177]
[1742414845024,0.05116379,2044.4,2044.1,5.177]
[1742414845230,4.94266379,2044.4,2044.1,5.177]
[1742414845757,0.05116379,2044.4,2044.1,5.177]
[1742414845929,0.05116379,2044.4,2044.1,10.06908]
[1742414846266,0.05116379,2044.4,2044.1,11.075948]
[1742414846639,0.05116379,2044.4,2044.1,6.183908]
[1742414846842,0.05116379,2044.4,2044.1,5.177]
[1742414847053,0.05116379,2044.4,2044.1,10.0691]
[1742414847438,0.05116379,2044.4,2044.1,4.8921]
[1742414847642,0.05116379,2044.4,2044.0,10.06925]
[1742414847839,0.05116379,2044.4,2044.0,14.96144]
[1742414848274,4.49151054,2044.3,2043.9,4.8926]
[1742414848446,4.49151054,2044.3,2043.8,10.952741]
[1742414848447,5.30621054,2044.3,2043.8,10.952741]
[1742414848629,4.94319828,2044.2,2043.8,6.059981]
[1742414849128,0.05118828,2044.2,2043.9,4.89257]
[1742414849461,0.05118828,2044.2,2043.8,10.952751]
[1742414849661,0.05118828,2044.2,2043.8,16.129751]
[1742414849962,4.94309828,2044.2,2043.8,18.2320231]
[1742414850460,0.05118828,2044.2,2043.9,4.8926]
[1742414850662,0.05118828,2044.2,2043.8,18.2320431]
[1742414850863,0.05118828,2044.2,2043.8,23.1247031]
[1742414851164,0.05118828,2044.2,2044.0,4.89225]
[1742414851327,0.05118828,2044.2,2044.0,9.78446]
[1742414851532,0.05118828,2044.2,2044.1,4.89212]
[1742414851962,0.7976,2044.5,2044.1,4.89212]
[1742414852165,4.93842211,2044.4,2043.9,4.89254]
[1742414852342,4.89191,2044.2,2043.8,16.129801]
[1742414852546,0.80093176,2044.1,2043.8,16.129801]
[1742414853563,0.80093176,2044.1,2043.9,4.89249]
[1742414853764,0.04663176,2044.1,2044.0,4.89236]
[1742414853963,0.7621,2044.4,2044.0,9.78472]
[1742414854267,0.04682052,2044.3,2044.0,9.78472]
[1742414854560,0.7621,2044.4,2044.1,4.89212]
[1742414854760,0.04682052,2044.3,2044.0,4.8923]
[1742414854966,0.7621,2044.4,2044.1,4.8921]
[1742414855164,0.0498544,2044.3,2044.1,4.89197]
[1742414855348,0.7621,2044.4,2044.2,4.89187]
[1742414855550,0.7621,2044.4,2044.1,9.78403]
[1742414855551,0.04970516,2044.3,2044.1,9.78403]
[1742414855761,0.7621,2044.4,2044.1,4.89195]
[1742414856067,0.7621,2044.4,2044.0,4.89216]
[1742414856068,0.04973003,2044.3,2044.0,4.89216]
[1742414856267,0.04973003,2044.3,2044.0,9.78441]
[1742414856468,0.7621,2044.4,2044.0,4.89216]
[1742414856469,5.6536,2044.4,2044.0,4.89216]
[1742414856671,11.78487027,2044.4,2044.0,10.06916]
[1742414856973,11.83846081,2044.4,2044.0,10.06916]
[1742414857278,16.73006081,2044.4,2043.9,10.0695]
[1742414857737,11.83846081,2044.4,2043.9,10.0695]
[1742414858138,6.94696081,2044.4,2043.9,5.177]
[1742414858364,6.94696081,2044.4,2044.0,4.89219]
[1742414858664,4.89168,2044.3,2043.9,10.0695]
[1742414858872,5.86702912,2044.3,2043.9,10.0695]
[1742414859167,0.97534912,2044.3,2044.0,4.89236]
[1742414859369,5.86713912,2044.3,2043.9,5.177]
[1742414859569,5.86713912,2044.3,2043.9,10.06959]
[1742414860157,0.97534912,2044.3,2043.9,14.96205]
[1742414860671,0.97534912,2044.3,2043.9,10.06946]
[1742414860852,5.86708912,2044.3,2043.9,10.06946]
[1742414861054,4.89201,2044.2,2043.9,5.177]
[1742414861239,0.7964,2044.1,2043.6,10.953111]
[1742414861442,4.89237,2044.0,2043.7,5.177]
[1742414861762,4.8924,2044.0,2043.7,5.177]
[1742414861942,5.68863,2044.1,2043.7,10.07006]
[1742414862146,4.89246,2044.0,2043.6,10.953111]
[1742414862367,4.89246,2044.0,2043.6,22.9788732]
[1742414862675,0.7964,2044.1,2043.8,4.89274]
[1742414862843,5.68864,2044.1,2043.7,4.89301]
[1742414863176,5.68855,2044.1,2043.6,18.0858132]
[1742414863373,4.8927,2043.9,2043.6,13.1925932]
[1742414863873,4.8927,2043.9,2043.6,11.236981]
[1742414864072,4.8927,2043.9,2043.6,6.059981]
[1742414864073,9.78553,2043.9,2043.6,6.059981]
[1742414864280,0.7705,2043.7,2043.4,10.953741]
[1742414864575,0.7705,2043.7,2043.2,16.131131]
[1742414864576,9.38484054,2043.6,2043.2,16.131131]
[1742414864877,4.89333,2043.6,2043.2,24.7454451]
[1742414865078,6.6334626,2043.7,2043.3,4.89402]
[1742414865471,9.78697,2043.6,2043.2,6.059981]
[1742414865677,1.7401726,2043.7,2043.2,6.059981]
[1742414865872,6.6334826,2043.7,2043.2,6.059981]
[1742414866055,11.5267726,2043.7,2043.3,4.89399]
[1742414866371,4.89357,2043.5,2043.2,6.059981]
[1742414866543,9.78735,2043.5,2043.1,5.177]
[1742414866746,4.89381,2043.4,2043.1,5.177]
[1742414867243,4.89362,2043.5,2043.1,10.07151]
[1742414867579,4.89362,2043.5,2043.1,5.177]
[1742414867778,4.89362,2043.5,2043.1,10.07143]
[1742414867957,14.27835054,2043.6,2043.1,14.96582]
[1742414868286,11.02420627,2043.6,2043.1,14.96582]
[1742414868578,9.38484054,2043.6,2043.2,4.89423]
[1742414869173,4.05681658,2043.5,2043.1,10.07145]
[1742414869382,8.95041658,2043.5,2043.1,10.07145]
[1742414869978,4.05681658,2043.5,2043.2,4.89418]
[1742414870183,4.05681658,2043.5,2043.1,10.0714]
[1742414870476,8.95041658,2043.5,2043.1,14.96577]
[1742414870648,8.95041658,2043.5,2043.1,12.2509651]
[1742414870850,8.95041658,2043.5,2043.1,10.07137]
[1742414871581,4.05681658,2043.5,2043.1,5.177]
[1742414871880,4.05681658,2043.8,2043.1,10.0713]
[1742414872080,8.95019658,2043.6,2043.2,4.8942]
[1742414872294,8.95019658,2043.6,2043.3,1.496565]
[1742414872500,8.95019658,2043.6,2043.3,6.390595]
[1742414872781,9.74429658,2043.6,2043.3,1.496565]
[1742414873286,4.85091658,2043.6,2043.3,6.390475]
[1742414873459,4.85091658,2043.6,2043.4,4.89375]
[1742414873776,4.85091658,2043.6,2043.3,6.390595]
[1742414874755,4.85091658,2043.6,2043.2,4.89421]
[1742414874954,4.85091658,2043.6,2043.1,5.177]
[1742414874955,4.05681658,2043.4,2043.1,10.07132]
[1742414875160,4.05681658,2043.4,2043.2,4.89423]
[1742414875362,4.85091658,2043.6,2043.3,4.89393]
[1742414875673,9.74426658,2043.6,2043.2,4.89423]
[1742414876777,4.89365,2043.5,2043.1,10.07151]
[1742414876981,4.89365,2043.5,2043.2,4.89427]
[1742414877200,4.89436,2043.2,2042.8,4.89515]
[1742414877399,0.8083,2043.1,2042.8,4.89515]
[1742414878252,0.8083,2043.1,2042.9,4.89499]
[1742414879380,0.8083,2043.1,2042.8,4.89515]
[1742414879572,4.05681658,2043.0,2042.8,4.89513]
[1742414879774,4.05681658,2043.0,2042.9,4.895]
[1742414881386,4.05681658,2043.0,2042.4,0.8021]
[1742414881589,4.05681658,2042.6,2042.5,4.89585]
[1742414883201,4.05681658,2042.6,2042.4,10.7591881]
[1742414883356,0.8213,2042.7,2042.4,5.8622081]
[1742414883557,0.8213,2043.0,2042.9,4.895]
[1742414883783,4.8941,2043.3,2042.9,4.895]
[1742414883784,4.05681658,2043.1,2042.9,4.895]
[1742414884080,4.05681658,2043.1,2042.8,4.89515]
[1742414884263,4.05681658,2042.9,2042.8,4.89515]
[1742414884579,4.05681658,2042.9,2042.8,5.874212]
[1742414885159,4.05681658,2042.9,2042.8,0.979062]
[1742414885576,4.05681658,2042.9,2042.6,4.89566]
[1742414886392,4.05681658,2042.7,2042.5,17.04376991]
[1742414886592,4.05681658,2042.7,2042.6,4.89572]
[1742414886756,4.05681658,2042.9,2042.6,9.7912]
[1742414886952,4.05681658,2042.9,2042.6,9.79106]
[1742414887152,8.95183658,2042.9,2042.6,7.1860268]
[1742414887691,4.05681658,2042.9,2042.6,7.1860268]
[1742414888356,8.95183658,2042.9,2042.6,7.1860268]
[1742414888549,4.05681658,2042.7,2042.5,6.08815891]
[1742414888766,4.05681658,2042.7,2042.5,4.19221891]
[1742414889403,4.05681658,2042.7,2042.5,9.08816891]
[1742414889982,4.05681658,2042.7,2042.5,13.98401891]
[1742414890197,4.05681658,2042.7,2042.6,4.89572]
[1742414890404,4.05681658,2042.7,2042.5,9.08811891]
[1742414890686,4.05681658,2042.7,2042.6,4.89572]
[1742414891278,4.05681658,2042.7,2042.5,9.08806891]
[1742414892217,4.05681658,2042.7,2042.5,13.98386891]
[1742414892412,4.05681658,2042.7,2042.6,4.89572]
[1742414893388,4.05681658,2042.9,2042.8,4.89524]
[1742414893777,4.05681658,2042.9,2042.7,4.89542]
[1742414895443,4.05681658,2042.9,2042.7,4.89536]
[1742414895625,4.05681658,2042.9,2042.8,4.89524]
[1742414896326,4.05681658,2042.9,2042.4,10.956141]
[1742414896522,4.05681658,2042.5,2042.4,7.8962]
[1742414896896,4.05681658,2042.5,2042.4,4.8962]
[1742414897098,4.05681658,2042.7,2042.4,4.8962]
[1742414897302,4.05681658,2042.7,2042.4,9.79228]
[1742414897516,4.05681658,2042.7,2042.4,4.89608]
[1742414898341,8.95229658,2042.7,2042.4,4.89608]
[1742414898910,4.05681658,2042.7,2042.4,9.79213]
[1742414899134,8.95233658,2042.7,2042.3,7.89637]
[1742414899327,4.05681658,2042.5,2042.1,0.7935]
[1742414899503,4.05681658,2042.3,2042.1,13.07278]
[1742414899701,4.05681658,2042.3,2042.1,13.07275]
[1742414900201,4.05681658,2042.3,2042.1,4.89675]
[1742414900596,4.05681658,2042.3,2042.1,12.7935]
[1742414900797,4.05681658,2042.3,2042.1,15.2781581]
[1742414901126,4.05681658,2042.5,2042.2,9.79321]
[1742414901327,4.05681658,2042.5,2042.2,4.89653]
[1742414901930,4.05681658,2042.5,2042.2,9.79302]
[1742414902135,4.05681658,2042.5,2042.2,4.89649]
[1742414902631,4.05681658,2042.5,2042.1,10.3814781]
[1742414902949,4.05681658,2042.5,2042.2,7.05832591]
[1742414903602,8.95277658,2042.5,2042.2,7.05832591]
[1742414904229,4.05681658,2042.5,2042.2,7.05832591]
[1742414904640,8.95278658,2042.5,2042.2,7.05832591]
[1742414904828,8.95278658,2042.5,2042.2,4.89668]
[1742414905702,4.05681658,2042.5,2042.2,4.89668]
[1742414906208,4.05681658,2042.5,2042.3,4.89643]
[1742414906403,4.89536,2042.8,2042.5,4.89596]
[1742414906404,0.8099,2042.8,2042.5,4.89596]
[1742414906608,4.86671658,2042.8,2042.4,4.89617]
[1742414906808,4.86671658,2042.8,2042.5,4.8959]
[1742414907034,4.86671658,2042.8,2042.4,1.6628941]
[1742414907242,4.05681658,2042.8,2042.6,4.89563]
[1742414907608,4.05681658,2042.8,2042.6,4.89562]
[1742414908010,0.8291,2042.7,2042.3,4.8962]
[1742414908205,4.05681658,2042.6,2042.3,9.79244]
[1742414908413,4.05681658,2042.6,2042.3,4.8962]
[1742414908814,4.05681658,2042.4,2042.2,4.8966]
[1742414909143,4.05681658,2042.4,2042.1,10.07169]
[1742414909511,4.05681658,2042.4,2042.1,14.96849]
[1742414909910,0.8291,2042.7,2042.3,4.89644]
[1742414910106,4.88591658,2042.7,2042.4,4.8961]
[1742414910310,9.78140658,2042.7,2042.4,4.8961]
[1742414911045,4.88591658,2042.7,2042.4,4.89604]
[1742414911541,9.78145658,2042.7,2042.4,4.89604]
[1742414911846,4.88591658,2042.7,2042.4,4.89604]
[1742414912246,9.78141658,2042.7,2042.4,4.89604]
[1742414912667,4.89637,2042.4,2041.9,4.89716]
[1742414912814,7.74225666,2042.7,2041.9,4.89716]
[1742414912815,4.05681658,2042.1,2041.9,4.89716]
[1742414913241,4.83911658,2042.3,2042.0,4.89715]
[1742414913544,9.73555658,2042.3,2042.0,4.89715]
[1742414913746,9.73555658,2042.3,2041.9,9.79458]
[1742414913950,14.63217658,2042.3,2041.9,4.89727]
[1742414914154,15.67665529,2042.3,2041.9,4.89727]
[1742414914461,10.78003529,2042.3,2041.9,4.89722]
[1742414914954,15.67665529,2042.3,2041.9,4.89722]
[1742414915243,10.78003529,2042.3,2041.9,4.8973]
[1742414915458,9.73555658,2042.3,2041.9,4.8973]
[1742414915641,4.05681658,2042.1,2041.8,16.131601]
[1742414915841,8.95386658,2042.1,2041.8,6.059981]
[1742414916047,8.95386658,2042.1,2041.7,14.96955]
[1742414916551,0.7969,2042.0,2041.6,3.0]
[1742414916750,8.95455658,2041.8,2041.4,10.958361]
[1742414916953,8.95455658,2041.8,2041.4,15.856801]
[1742414917118,8.95455658,2041.8,2041.5,4.89834]
[1742414917321,4.05681658,2041.8,2041.5,4.89834]
[1742414917546,4.82361658,2041.6,2041.4,6.059981]
[1742414917847,4.82361658,2041.6,2041.4,10.958451]
[1742414919755,4.82361658,2041.6,2041.4,6.059981]
[1742414920247,4.82361658,2041.6,2041.3,4.89866]
[1742414920463,4.05681658,2041.6,2041.4,4.8985]
[1742414920941,4.05681658,2041.6,2041.3,6.5872241]
[1742414921848,4.81061658,2042.1,2041.9,4.89727]
[1742414922058,9.70765658,2042.1,2041.7,4.89782]
[1742414922355,4.05681658,2041.9,2041.7,4.89782]
[1742414922918,4.05681658,2041.9,2041.7,4.89787]
[1742414923214,4.05681658,2041.9,2041.8,4.89763]
[1742414923419,4.05681658,2041.9,2041.7,4.89778]
[1742414923420,4.05681658,2041.9,2041.7,4.89783]
[1742414923620,4.05681658,2041.9,2041.7,9.79552]
[1742414923834,4.05681658,2041.9,2041.7,4.89769]
[1742414924045,4.05681658,2041.9,2041.7,9.79545]
[1742414924249,4.05681658,2041.9,2041.7,4.89769]
[1742414924561,4.81061658,2042.1,2041.8,4.89763]
[1742414925352,9.70763658,2042.1,2041.7,4.89767]
[1742414925554,9.70763658,2042.1,2041.8,4.89756]
[1742414925716,16.06519624,2042.1,2041.7,4.89767]
[1742414926055,6.27102624,2042.1,2041.8,4.89752]
[1742414926419,6.27102624,2042.1,2041.8,9.79499]
[1742414926621,6.27102624,2042.1,2041.8,4.89754]
[1742414927893,11.16806624,2042.1,2041.7,4.89785]
[1742414928041,4.05681658,2041.9,2041.6,6.059981]
[1742414928243,2.43637462,2042.0,2041.7,4.89771]
[1742414928457,4.88671658,2042.0,2041.7,4.89771]
[1742414929054,9.78387658,2042.0,2041.7,4.89771]
[1742414929789,4.88671658,2042.0,2041.7,4.89771]
[1742414930160,9.78391658,2042.0,2041.7,4.89771]
[1742414931488,9.78388658,2042.0,2041.7,4.89771]
[1742414931846,4.05681658,2041.8,2041.6,10.958081]
[1742414932053,4.05681658,2041.8,2041.6,9.79608]
[1742414932253,4.05681658,2041.8,2041.7,4.89787]
[1742414932478,4.05681658,2041.8,2041.6,4.89798]
[1742414932688,5.52494124,2041.8,2041.4,6.059981]
[1742414932889,4.05681658,2041.8,2041.5,4.89833]
[1742414933479,9.78387658,2042.0,2041.6,4.89803]
[1742414933675,4.05681658,2042.0,2041.9,4.89739]
[1742414933952,4.81131658,2042.2,2041.9,4.89739]
[1742414934147,4.81131658,2042.2,2041.9,9.79468]
[1742414934363,4.81131658,2042.2,2041.9,4.89729]
[1742414934569,4.81131658,2042.2,2041.9,9.79454]
[1742414935057,4.81131658,2042.2,2041.9,4.89725]
[1742414936452,4.81131658,2042.2,2041.9,4.89739]
[1742414936791,4.05681658,2042.0,2041.9,4.89739]
[1742414936995,0.7545,2042.2,2041.9,4.89739]
[1742414937178,4.05681658,2042.1,2041.9,4.89739]
[1742414937383,4.05681658,2042.1,2042.0,4.89715]
[1742414937848,0.7545,2042.2,2042.1,4.89691]
[1742414938053,4.05681658,2042.3,2042.1,4.89691]
[1742414938247,4.05681658,2042.3,2041.8,0.8089]
[1742414938248,4.05681658,2042.3,2041.9,4.89738]
[1742414938476,4.05681658,2042.1,2041.8,7.89754]
[1742414938676,4.05681658,2042.1,2041.9,4.89736]
[1742414939599,4.05681658,2042.1,2041.8,9.79506]
[1742414940406,4.05681658,2042.1,2041.9,4.89721]
[1742414940818,4.05681658,2042.2,2041.9,5.65341]
[1742414941110,4.05681658,2042.2,2041.9,5.65351]
[1742414941316,4.05681658,2042.2,2042.0,4.89713]
[1742414942188,0.8166,2042.4,2042.0,1.055064]
[1742414942387,0.8166,2042.4,2042.3,4.89644]
[1742414942699,4.05681658,2042.5,2042.3,4.89644]
[1742414942907,1.37377522,2042.7,2042.3,4.8963]
[1742414943089,1.37377522,2042.7,2042.6,4.89572]
[1742414943615,1.37377522,2042.7,2042.6,8.65962]
[1742414943914,4.82481658,2043.1,2042.7,9.79064]
[1742414944111,9.71938658,2043.1,2042.7,4.89529]
[1742414944876,4.89481,2043.0,2042.7,4.89543]
[1742414945074,0.7904,2043.4,2042.8,4.89524]
[1742414945312,9.74102658,2043.4,2043.1,4.89437]
[1742414945590,4.05681658,2043.2,2043.0,5.71173]
[1742414946743,8.95116658,2043.2,2042.9,5.17]
[1742414946942,4.05681658,2043.2,2042.9,10.06489]
[1742414947342,4.05681658,2043.2,2042.9,14.95973]
[1742414947646,4.05681658,2043.2,2042.9,10.06484]
[1742414947803,4.05681658,2043.2,2042.9,10.06482]
[1742414948003,4.05681658,2043.2,2043.0,9.78931]
[1742414948202,4.05681658,2043.4,2043.2,4.89412]
[1742414948946,4.05681658,2043.4,2043.3,4.89404]
[1742414949341,4.05681658,2043.6,2043.4,4.89372]
[1742414950405,4.05681658,2043.6,2043.3,4.894]
[1742414950605,4.05681658,2043.6,2043.3,9.78789]
[1742414951044,4.05681658,2043.6,2043.3,4.89389]
[1742414951417,4.05681658,2043.6,2043.3,9.78783]
[1742414951620,4.05681658,2043.6,2043.3,4.89389]
[1742414952027,4.05681658,2043.6,2043.3,9.78778]
[1742414952465,4.8944,2043.2,2042.9,6.059981]
[1742414952765,4.8944,2043.2,2043.0,5.166]
[1742414952920,4.05681658,2043.0,2042.9,13.954981]
[1742414953119,5.6683,2043.4,2043.0,4.89471]
[1742414953315,7.3803078,2043.4,2043.0,9.78934]
[1742414953559,7.3803078,2043.4,2043.0,4.89463]
[1742414953949,4.05681658,2043.3,2043.0,4.89463]
[1742414954134,4.05681658,2043.1,2042.9,18.849741]
[1742414954335,4.05681658,2043.1,2042.9,13.954761]
[1742414954834,4.05681658,2043.1,2043.0,4.89476]
[1742414955350,4.05681658,2043.1,2042.9,13.954761]
[1742414955552,4.05681658,2043.1,2042.9,9.059981]
[1742414955864,4.05681658,2043.1,2042.9,13.954901]
[1742414956733,4.05681658,2043.1,2042.9,6.059981]
[1742414956734,0.7682,2043.0,2042.9,6.059981]
[1742414956933,5.66296,2043.0,2042.9,6.059981]
[1742414957338,0.7682,2043.0,2042.9,6.059981]
[1742414957555,5.66296,2043.0,2042.9,6.059981]
[1742414957953,0.7682,2043.0,2042.9,6.059981]
[1742414958139,2.73096406,2043.0,2042.9,6.059981]
[1742414958345,4.89541,2042.8,2042.4,5.9553]
[1742414958563,4.05681658,2042.5,2042.4,13.06117]
[1742414958882,4.05681658,2042.5,2042.1,10.956851]
[1742414959160,4.05681658,2042.4,2042.2,4.89668]
[1742414959381,4.05681658,2042.4,2042.3,4.89644]
[1742414959935,4.05681658,2042.6,2042.4,4.89606]
[1742414960164,4.05681658,2042.6,2042.5,4.89596]
[1742414960726,4.05681658,2042.8,2042.7,4.89531]
[1742414961363,0.8317,2043.0,2042.7,4.89531]
[1742414961568,4.05681658,2042.8,2042.7,4.89531]
[1742414962761,4.05681658,2043.2,2042.9,4.895]
[1742414962932,4.05681658,2043.2,2043.1,4.89452]
[1742414963138,4.05681658,2043.2,2043.0,4.89473]
[1742414963544,4.05681658,2043.2,2042.9,4.89496]
[1742414963744,4.05681658,2043.0,2042.9,4.89496]
[1742414964264,4.05681658,2043.0,2042.8,10.0591]
[1742414964852,4.05681658,2043.0,2042.8,10.05923]
[1742414965248,6.1413219,2043.0,2042.5,3.0]
[1742414965453,4.05681658,2042.7,2042.6,10.05861]
[1742414965753,4.05681658,2042.7,2042.6,14.95417]
[1742414966141,4.05681658,2042.9,2042.7,4.89527]
[1742414967445,4.05681658,2042.9,2042.8,4.89524]
[1742414968379,4.05681658,2042.9,2042.7,4.89548]
[1742414968547,4.89535,2042.8,2042.6,5.163]
[1742414968747,4.89535,2042.8,2042.4,16.119151]
[1742414968748,4.05681658,2042.7,2042.4,16.119151]
[1742414968990,4.05681658,2042.5,2042.4,6.059981]
[1742414969574,4.05681658,2042.5,2042.4,10.956181]
[1742414970374,4.05681658,2042.5,2042.4,4.8962]
[1742414970748,4.05681658,2042.7,2042.4,9.79216]